Cogmind - Beta 15 *** ADVENTURER MODE // 2025.07.10 @ 10:57:57 Player: Violet Result: Self-destructed Performance ------------- Evolutions (1) 500 Regions Visited (2) 400 Robots Destroyed (14) 70 Value Destroyed (358) 358 Prototype IDs (1) 20 Alien Tech Used (0) 0 Bonus (-9) -9 TOTAL SCORE: 1339 Bonus ------- Friendly Fire -9 Cogmind --------- Core Integrity 318/400 Matter 144/300 Energy 23/250 System Corruption 0% Temperature Hot (216) Movement Core (100) Ox1 Location -9/Materials Parts ------- > --- POWER (1) -------- Ion Engine > --- PROPULSION (3) --- (None) > --- UTILITY (3) ------ Small Storage Unit Advanced Weight Redist. System Improved Light Armor Plating > --- WEAPON (2) ------- Shock Rifle Advanced Beam Cannon > --- INVENTORY (8) ---- Light Nuclear Core Advanced Weight Redist. System Improved Light Armor Plating Shield Generator Shock Rifle Assault Rifle Assault Rifle Peak State ------------ > --- POWER ------------ Ion Engine > --- PROPULSION ------- Aluminum Leg Aluminum Leg > --- UTILITY ---------- Small Storage Unit Advanced Weight Redist. System Improved Light Armor Plating > --- WEAPON ----------- Shock Rifle Advanced Beam Cannon > --- INVENTORY -------- Light Nuclear Core Advanced Weight Redist. System Improved Light Armor Plating Shield Generator Shock Rifle Assault Rifle Assault Rifle [Rating: 17] Favorites ----------- Power Ion Engine Engine Ion Engine Propulsion Aluminum Leg Leg Aluminum Leg Utility Small Storage Unit Device Advanced Weight Redist. System Storage Small Storage Unit Protection Improved Light Armor Plating Weapon Assault Rifle Energy Gun Shock Rifle Energy Cannon Advanced Beam Cannon Ballistic Gun Assault Rifle Launcher Rocket Launcher Build | -11 -10 -9 ------- Run | Yrd Mat Mat Slots Evolved 2 | . . 2 Power . | . . . Propulsion 1 | . . 1 Utility 1 | . . 1 Weapon . | . . . Parts Attached 11 | 6 1 4 Power 1 | 1 . . Engine 1 | 1 . . Core . | . . . Reactor . | . . . Propulsion 2 | 2 . . Treads . | . . . Leg 2 | 2 . . Wheel . | . . . Hover . | . . . Flight . | . . . Utility 3 | 1 . 2 Device 1 | . . 1 Storage 1 | 1 . . Processor . | . . . Hackware . | . . . Protection 1 | . . 1 Artifact . | . . . Weapon 5 | 2 1 2 Energy Gun 1 | . . 1 Energy Cannon 1 | . 1 . Ballistic Gun 2 | 2 . . Ballistic Cannon . | . . . Launcher 1 | . . 1 Special Weapon . | . . . Impact Weapon . | . . . Slashing Weapon . | . . . Piercing Weapon . | . . . Special Melee Weapon . | . . . Unidentified Prototypes 1 | . 1 . Parts Lost 3 | . . 3 Power . | . . . Propulsion 2 | . . 2 Utility . | . . . Weapon 1 | . . 1 Highest Loss Streak 2 | . . 2 To Critical Strikes 3 | . . 3 Average Backups 4 | 1 2 7 Power . | . . 1 Propulsion . | . . . Utility 1 | . . 2 Weapon 3 | . 1 4 Tool/Special . | . . . Unused Backups 11 | . 1 10 Power 1 | . . 1 Propulsion . | . . . Utility 4 | . . 4 Weapon 6 | . 1 5 Tool/Special . | . . . Average Slot Usage (%) 83 | . 85 81 Engine 12 | . 14 11 Leg 23 | . 28 20 Device 4 | . . 8 Storage 12 | . 14 11 Protection 4 | . . 8 Energy Gun 1 | . . 2 Energy Cannon 6 | . . 11 Ballistic Gun 15 | . 27 6 Launcher 1 | . . 2 Peak Build Rating 17 | 6 9 17 Average Rating 10 | 4 6 14 On Entrance 5 | . 6 9 Naked Turns . | . . . Heaviest Build 21 | 14 16 21 Greatest Support 29 | 20 20 29 Greatest Overweight (x) 1 | . . 1 Average Overweight (x) . | . . . Largest Inventory Capacity 8 | 8 8 8 Average Capacity 7 | 6 8 8 Most Carried 8 | 5 8 8 Average Carried 5 | 1 2 7 Final Capacity 8 | 8 8 8 Final Carried 7 | 1 7 7 Class Distribution -------------------- 100% | Mutant Dominant Class ---------------- Mutant | -10/Materials Mutant | -9/Materials Resources | -11 -10 -9 ----------- Run | Yrd Mat Mat Matter Collected 423 | 253 73 97 Remotely . | . . . Salvage Created 391 | . 178 213 Parts 28 | . 4 24 Haulers Intercepted 1 | . . 1 Recyclers Shooed . | . . . Parts Field Recycled . | . . . Retrieved Matter . | . . . Parts Self-Destructed . | . . . Prevented . | . . . Kills | -11 -10 -9 ------- Run | Yrd Mat Mat Combat Hostiles Destroyed 7 | . 3 4 Guns 3 | . 3 . Cannons 2 | . . 2 AOE 2 | . . 2 Classes Destroyed 6 | . 2 4 Worker 1 | . . 1 Builder 1 | . . 1 Hauler 1 | . . 1 Watcher 4 | . 2 2 Grunt 5 | . 3 2 Sentry 2 | . . 2 Best Kill Streak 7 | . 4 7 Combat Bots Only 3 | . 3 2 Max Kills in Single Turn 4 | . 1 4 Gunslinging . | . . . Exploded 1 | . . 1 Melee . | . . . Uniques/NPCs Destroyed . | . . . Combat | -11 -10 -9 -------- Run | Yrd Mat Mat Hostile Shots Fired 67 | . 20 47 Missed 15 | . 6 9 Hits 52 | . 14 38 Projectile 52 | . 14 38 Critical Strikes 13 | . . 13 Damage Taken 644 | . 150 494 Core 96 | . 14 82 Absorbed by Shields . | . . . Ignored by Resistances 186 | . 45 141 Core Remaining (%) 97 | 100 94 . Volleys Fired 46 | . 11 35 Largest 2 | . 2 2 Hottest 118 | . 40 118 Shots Fired 84 | . 22 62 Gun 36 | . 22 14 Cannon 29 | . . 29 Launcher 19 | . . 19 Special . | . . . Kinetic 25 | . 22 3 Thermal 29 | . . 29 Explosive 19 | . . 19 Electromagnetic 11 | . . 11 Robot Hit Streak 13 | . 6 13 Robot Miss Streak 3 | . 2 3 Penetration Max . | . . . Secondary Targets 1 | . 1 . Max Gunslinging Chain 1 | . 1 . Shots Hit Robots 62 | . 15 47 Core Hits 37 | . 9 28 Critical Kills . | . . . Critical Parts Destroyed . | . . . Critical Strikes . | . . . Melee Attacks . | . . . Impact . | . . . Slashing . | . . . Piercing . | . . . Sneak Attacks . | . . . Combat Hostiles . | . . . Follow-up Attacks . | . . . Damage Inflicted 989 | . 220 769 Guns 236 | . 218 18 Cannons 251 | . . 251 Explosions 500 | . . 500 Melee . | . . . Ramming 2 | . 2 . Kinetic 229 | . 218 11 Thermal 251 | . . 251 Explosive 500 | . . 500 Electromagnetic 7 | . . 7 Impact . | . . . Slashing . | . . . Piercing . | . . . Highest Corruption . | . . . Average Corruption . | . . . Corruption Purged . | . . . Corruption Blocked . | . . . Overload Shots . | . . . Overflow Damage . | . . . Projectiles . | . . . Explosions . | . . . Melee . | . . . Knockbacks . | . . . Impact . | . . . Kinetic . | . . . Secondary . | . . . Self-Inflicted Damage 25 | . . 25 Shots 1 | . . 1 Rammed . | . . . Targets Rammed 1 | . 1 . Kicked 1 | . 1 . Crushed . | . . . Highest Temperature 338 | . 8 338 Average Temperature 122 | . 4 127 Received Heat Transfer 123 | . 99 24 Siege Activations . | . . . Martial Activations . | . . . Shielding Activations . | . . . Robots Disrupted . | . . . Combat Hostiles . | . . . Robots Corrupted . | . . . Combat Hostiles . | . . . Parts Fried . | . . . Impact Corruptions . | . . . Robots Melted . | . . . Combat Hostiles . | . . . Parts Melted . | . . . Heat Transferred 272 | . . 272 Parts Sabotaged . | . . . Parts Stolen . | . . . Parts Stripped . | . . . Power Chain Reactions . | . . . Alert | -11 -10 -9 ------- Run | Yrd Mat Mat Maximum Alert Level . | . . . Low Security (%) 100 | 100 100 100 Level 1 . | . . . Level 2 . | . . . Level 3 . | . . . Level 4 . | . . . Level 5 . | . . . High Security . | . . . Max Security . | . . . Peak Influence 118 | . 60 118 Initial . | . . . Average 30 | . 20 42 Influence Increases 278 | . 84 194 Destroy 0b10 Robot/C 140 | . 60 80 Destroy 0b10 Robot/NC 35 | . 10 25 Destroy Leader 50 | . 14 36 Successful Hack 6 | . . 6 Destroy Structure 47 | . . 47 Influence Decreases 240 | . 84 156 Time Decay 210 | . 84 126 Lost Part 30 | . . 30 Squads Dispatched 3 | . . 3 Investigation 1 | . . 1 Extermination . | . . . Reinforcement 2 | . . 2 Assault . | . . . Garrison . | . . . Intercept . | . . . Searches Triggered . | . . . Construction Impeded 1 | . . 1 Haulers Reinforced . | . . . Active Scanning Responses . | . . . Cargo Convoy Interrupts . | . . . Stealth | -11 -10 -9 --------- Run | Yrd Mat Mat Distress Signals 5 | . 1 4 Communications Jammed . | . . . Distress Signals . | . . . Times Spotted 17 | . 5 12 Peak Tracking Total 6 | . 4 6 Tactical Retreats 1 | . . 1 Traps | -11 -10 -9 ------- Run | Yrd Mat Mat Traps Triggered 2 | . 1 1 Indirectly . | . . . Trap Hack Attempts . | . . . Triggered . | . . . Disarmed . | . . . Reprogrammed . | . . . Reused . | . . . Traps Extracted . | . . . Installed . | . . . Triggered . | . . . Machines | -11 -10 -9 ---------- Run | Yrd Mat Mat Machines Disabled . | . . . Max in Single Turn . | . . . Machines Repaired . | . . . Machines Dismantled . | . . . Machines Sabotaged . | . . . Overloaded Fab Kills . | . . . Hacking | -11 -10 -9 --------- Run | Yrd Mat Mat Machines Accessed 2 | . . 2 Terminals 2 | . . 2 Fabricators . | . . . Repair Stations . | . . . Recycling Units . | . . . Scanalyzers . | . . . Garrison Access . | . . . Total Hacks 5 | . . 5 Successful 3 | . . 3 Failed 2 | . . 2 Catastrophic . | . . . Database Lockouts . | . . . Manual . | . . . Terminals 5 | . . 5 Fabricators . | . . . Repair Stations . | . . . Recycling Units . | . . . Scanalyzers . | . . . Garrison Access . | . . . Terminal Hacks 3 | . . 3 Record 1 | . . 1 Alert Level 1 | . . 1 Registered Components 1 | . . 1 Fabricator Hacks . | . . . Repair Station Hacks . | . . . Recycling Unit Hacks . | . . . Scanalyzer . | . . . Garrison Access Hacks . | . . . Unauthorized Hacks . | . . . Terminals . | . . . Fabricators . | . . . Repair Stations . | . . . Recycling Units . | . . . Scanalyzers . | . . . Garrison Access . | . . . Data Cores Recovered . | . . . Used . | . . . Hacking Detections 2 | . . 2 Full Trace Events 1 | . . 1 Feedback Events . | . . . Feedback Blocked . | . . . Robot Schematics Acquired . | . . . Robots Built . | . . . Authchips . | . . . Time . | . . . Total Robot Build Rating . | . . . Part Schematics Acquired . | . . . Parts Built . | . . . Authchips . | . . . Time . | . . . Total Part Build Rating . | . . . Parts Repaired . | . . . Time . | . . . Parts Recycled . | . . . Recycled Matter . | . . . Retrieved Matter . | . . . Retrieved Components . | . . . Parts Scanalyzed . | . . . Part Schematics Acquired . | . . . Parts Damaged . | . . . Bothacking | -11 -10 -9 ------------ Run | Yrd Mat Mat Used RIF Installer . | . . . Robots Hacked . | . . . Non-combat . | . . . Combat . | . . . Robot Hacks Applied . | . . . Relay Couplers Released . | . . . Fabnet Peak Effective % . | . . . Robots Rewired . | . . . Allies Hacked . | . . . Hacks Repelled . | . . . Allies | -11 -10 -9 -------- Run | Yrd Mat Mat Total Allies . | . . . Largest Group . | . . . Highest-Rated Group . | . . . Highest-Rated Ally . | . . . Total Orders . | . . . Ally Attacks . | . . . Total Damage . | . . . Kills . | . . . Allies Corrupted . | . . . Allies Melted . | . . . Intel | -11 -10 -9 ------- Run | Yrd Mat Mat Active Infowar (turns) . | . . . Robot Analysis Total . | . . . Derelict Logs Recovered . | . . . Drone Launches . | . . . Drone Recoveries . | . . . Exploration | -11 -10 -9 ------------- Run | Yrd Mat Mat Turns Passed 664 | 62 248 354 Spaces Moved 397 | 46 165 186 Core 14 | 14 . . Treads . | . . . Legs 383 | 32 165 186 Wheels . | . . . Hover . | . . . Flight . | . . . Fastest Speed 50 | 50 120 120 Average Speed 118 | 98 120 123 Slowest Speed 190 | 120 120 190 Overloaded Moves . | . . . Propulsion Burnouts . | . . . Robots Hopped . | . . . Potential Cave-ins . | . . . Cave-ins Triggered . | . . . Exploration Rate (%) 16 | 4 27 18 Regions Visited 2 Branch Regions . Pre-discovered Areas . | . . . Known Exits Taken . | . . . Unknown Exits Taken 2 | 1 1 . Scrap Searched . | . . . Spaces Dug . | . . . Terrain Destroyed 58 | . . 58 Melee . | . . . Projectile . | . . . AOE 58 | . . 58 Terrain Rammed . | . . . Walls Destroyed . | . . . Machines Disabled . | . . . Actions | -11 -10 -9 --------- Run | Yrd Mat Mat Total 506 | 62 193 251 Wait 25 | 4 8 13 Move 395 | 45 164 186 Hop . | . . . Pick Up 22 | 7 7 8 Fast Attach . | . . . Attach 9 | 6 . 3 Detach . | . . . Swap 2 | . 1 1 Drop 6 | . 1 5 Fire 46 | . 11 35 Melee . | . . . Ram . | . . . Kick 1 | . 1 . Crush . | . . . Escape Stasis . | . . . Rewire . | . . . Trap . | . . . Miscellaneous . | . . . Route ------- -11/Scrapyard -10/Materials -9/Materials (discovered 1 exit: [*Min]) History --------- Turn | Location | Event 6 | -11/Scrapyard | Discovered new exit (range 16) 63 | -11/Scrapyard | Entered Materials 273 | -10/Materials | Discovered new exit (range 10) 311 | -10/Materials | Entered another Materials area 311 | -9/Materials | Evolved 2 slots: Propulsion x1, Utility x1 328 | -9/Materials | Build established: Mutant 520 | -9/Materials | Discovered new exit (range 15) 521 | -9/Materials | Attacked by 8R-AWN 665 | -9/Materials | Self-destructed Last Messages --------------- K-01 Serf collects debris. U-05 Engineer lays Concrete. U-05 Engineer builds a Wall. Penetrated by HV Slug. Critical hit (Destroy). Aluminum Leg destroyed. HV Slug penetrates Wall. HV Slug penetrates Electrolysis Chamber. Electrolysis Chamber disabled. HV Slug penetrates Electrolysis Chamber. U-05 Engineer lays Concrete. Penetrated by HV Slug. HV Slug penetrates Wall. Penetrated by HV Slug. HV Slug penetrates Wall. Penetrated by HV Slug. HV Slug penetrates Wall. Penetrated by HV Slug. HV Slug penetrates Wall. Wall collapses. Map ----- +----------------------------------------------------+ | ?????????????????????????????????????????????????# | | ???????????????????? ????????????????????????????# | | ???????????????????? ?????????????? ? ???????????# | | ???????????????????? ?????????????# ? #??????????? | | ?????????????#######"#???????????## ##?????????? | | ?????????????# ???????????# #?????????? | | ?????????????# ???????????# #?????????? | | ?????????????# !???????????+ T #?????????? | | ?????????????# = #?#????????# #?????????? | | ?????????????# !%= #?# "??????? !??????????? | | ????????##???? #?# "???????# #####??????? | | ???????? ??? #?? ""??????# # ???????? | | ??????? ??? [% ##?? ??????# ?????????? | | ??????? ?? =%*#!###"####### #??????????? | | ?????? ### #/###= ## #??????????? | | ?????? % !% ! ############ | | ?????? < = * = !! | | ?????? =%= ######## ### | | ?????? # !"""###??#####+### | | ??????? #### #####+######????# | | ???????## ???????#### ]#??????#" """ = | | ????????# ????????????# T ]#??????#T """ % | | ????????# ??????????????# ##?????#" """ ! | | ????????????????????????# #?????# """ | | ????????????????????????#g "" """ ##?????# """ | | ????????????????????????#@ "" """ #??????# | | ????????????????????????# " " """ #??????# | | ????????????????????????# #??????# | | ????????????????????????#;#########??????##### ### | | ????????????????????????# #??????????????????###?? | | ????????????????????????###??????????????????????? | | ?????????????????????????????????????????????????? | | ?????????????????????????????????????????????????? | | ?????????????????????????????????????????????????? | | ?????????????????????????????????????????????????? | | ?????????????????????????????????????????????????? | | ?????????????????????????????????????????????????? | | ?????????????????????????????????????????????????? | | ?????????????????????????????????????????????????? | | ?????????????????????????????????????????????????? | | ?????????????????????????????????????????????????? | | ?????????????????????????????????????????????????? | | ?????????????????????????????????????????????????? | | ?????????????????????????????????????????????????? | | ?????????????????????????????????????????????????? | | ?????????????????????????????????????????????????? | | ?????????????????????????????????????????????????? | | ?????????????????????????????????????????????????? | | ?????????????????????????????????????????????????? | | ?????????????????????????????????????????????????? | +----------------------------------------------------+ Best States ------------- Heat Dissipation 28 Energy Generation 10 Energy Capacity 250 Matter Stores 300 Matter Capacity 300 Sight Range 16 Terrain Scan Density 10 Additional Mass Support 9 Armor Coverage 150 Resistance: KI 20 Resistance: TH 20 Resistance: EX 20 Resistance: EM 20 Resistance: I 20 Resistance: S 20 Resistance: P 20 Evasion (%) 55 Offensive Hacking 10 Item Schematics ----------------- None Robot Schematics ------------------ None Fabricated ------------ Nothing Repaired ---------- Nothing Alien Tech Used ----------------- None Achievements -------------- None Challenges ------------ None Game ------ Seed ColdSuperquantumReplicator Manual? 0 Play Time 00:08:03 Cumulative 9.1 hours Start 2025.07.09 @ 09:16:57 End 2025.07.10 @ 10:57:57 Sessions 3 Manual Loads 0 Difficulty Adventurer Special Mode None Game No. 18 Rogue 3 Adventurer 15 Explorer 0 Win Type - Total 0 Types 0/0/0/0/0/0/0/0/0/0 Lore% 4 Gallery% 11 Achievement% 12 Wizard Run 0 Options --------- Layout 1 ASCII 0 Keyboard 1 Movement Numpad Keybinds 0 Fullscreen 1 Font 24/Smallcaps Map View 50x35 Zoom Use 0% Tactical HUD 0 Map Filters NONE Filters NONE Steam 1 RUN: 86412d86-e6ea-477e-b667-8b2943719384